Cogmind - Beta 14 @@@ ROGUE MODE // 2024.11.26 @ 12:14:07 Player: MarKhan Result: Destroyed by S-27 Virus with Autogun Performance ------------- Evolutions (3) 1500 Regions Visited (8) 1600 Robots Destroyed (0) 0 Value Destroyed (0) 0 Prototype IDs (0) 0 Alien Tech Used (0) 0 Bonus (2134) 2134 TOTAL SCORE: 5234 Bonus ------- Pacifist 634 Entered Garrisons 200 Used RIF Installer 500 Entered DSFs 500 Aligned with FarCom 300 Cogmind --------- Core Integrity 0/700 Matter 300/300 Energy 100/100 System Corruption 0% Temperature Cool (0) Movement Core (50) Location -7/Garrison Parts ------- > --- POWER (1) -------- (None) > --- PROPULSION (2) --- (None) > --- UTILITY (2) ------ (None) > --- WEAPON (8) ------- (None) > --- INVENTORY (5) ---- (None) Peak State ------------ None Favorites ----------- Power None Propulsion None Utility None Weapon None Build | -11 -10 -10 -10 -9 -8 -7 -7 -7 ------- Run | Yrd Mat Min Exi Min Mat Fac DSF Gar Slots Evolved 6 | . . . . . 4 2 . . Power . | . . . . . . . . . Propulsion . | . . . . . . . . . Utility . | . . . . . . . . . Weapon 6 | . . . . . 4 2 . . Parts Attached . | . . . . . . . . . Power . | . . . . . . . . . Engine . | . . . . . . . . . Core . | . . . . . . . . . Reactor . | . . . . . . . . . Propulsion . | . . . . . . . . . Treads . | . . . . . . . . . Leg . | . . . . . . . . . Wheel . | . . . . . . . . . Hover . | . . . . . . . . . Flight . | . . . . . . . . . Utility . | . . . . . . . . . Device . | . . . . . . . . . Storage . | . . . . . . . . . Processor . | . . . . . . . . . Hackware . | . . . . . . . . . Protection . | . . . . . . . . . Artifact . | . . . . . . . . . Weapon . | . . . . . . . . . Energy Gun . | . . . . . . . . . Energy Cannon . | . . . . . . . . . Ballistic Gun . | . . . . . . . . . Ballistic Cannon . | . . . . . . . . . Launcher . | . . . . . . . . . Special Weapon . | . . . . . . . . . Impact Weapon . | . . . . . . . . . Slashing Weapon . | . . . . . . . . . Piercing Weapon . | . . . . . . . . . Special Melee Weapon . | . . . . . . . . . Unidentified Prototypes . | . . . . . . . . . Parts Lost . | . . . . . . . . . Power . | . . . . . . . . . Propulsion . | . . . . . . . . . Utility . | . . . . . . . . . Weapon . | . . . . . . . . . Highest Loss Streak . | . . . . . . . . . To Critical Strikes . | . . . . . . . . . Average Slot Usage (%) . | . . . . . . . . . Peak Build Rating . | . . . . . . . . . Average Rating . | . . . . . . . . . On Entrance . | . . . . . . . . . Naked Turns 1232 | . 24 526 79 56 153 269 54 71 Heaviest Build . | . . . . . . . . . Greatest Support 3 | 3 3 3 3 3 3 3 3 3 Greatest Overweight (x) . | . . . . . . . . . Average Overweight (x) . | . . . . . . . . . Largest Inventory Capacity 5 | 5 5 5 5 5 5 5 5 5 Average Capacity 5 | 5 5 5 5 5 5 5 5 5 Most Carried . | . . . . . . . . . Average Carried . | . . . . . . . . . Final Capacity 5 | 5 5 5 5 5 5 5 5 5 Final Carried . | . . . . . . . . . Class Distribution -------------------- 100% | Mutant Dominant Class ---------------- Mutant | -10/Materials Mutant | -10/Mines Mutant | -10/Exiles Mutant | -9/Mines Mutant | -8/Materials Mutant | -7/Factory Mutant | -7/DSF Mutant | -7/Garrison Resources | -11 -10 -10 -10 -9 -8 -7 -7 -7 ----------- Run | Yrd Mat Min Exi Min Mat Fac DSF Gar Matter Collected 200 | 200 . . . . . . . . Remotely . | . . . . . . . . . Salvage Created . | . . . . . . . . . Parts . | . . . . . . . . . Haulers Intercepted . | . . . . . . . . . Recyclers Shooed . | . . . . . . . . . Parts Field Recycled . | . . . . . . . . . Retrieved Matter . | . . . . . . . . . Parts Self-Destructed . | . . . . . . . . . Prevented . | . . . . . . . . . Kills | -11 -10 -10 -10 -9 -8 -7 -7 -7 ------- Run | Yrd Mat Min Exi Min Mat Fac DSF Gar Combat Hostiles Destroyed . | . . . . . . . . . Classes Destroyed . | . . . . . . . . . Best Kill Streak . | . . . . . . . . . Combat Bots Only . | . . . . . . . . . Max Kills in Single Turn . | . . . . . . . . . Gunslinging . | . . . . . . . . . Exploded . | . . . . . . . . . Melee . | . . . . . . . . . Uniques/NPCs Destroyed . | . . . . . . . . . Combat | -11 -10 -10 -10 -9 -8 -7 -7 -7 -------- Run | Yrd Mat Min Exi Min Mat Fac DSF Gar Hostile Shots Fired 168 | . . 4 . . 81 . 8 75 Missed 76 | . . 1 . . 39 . 3 33 Damage Taken 1124 | . . 37 . . 386 . 202 499 Core 1124 | . . 37 . . 386 . 202 499 Absorbed by Shields 128 | . . . . . . . 13 115 Core Remaining (%) 71 | 100 . . . 85 29 . . . Volleys Fired . | . . . . . . . . . Largest . | . . . . . . . . . Hottest . | . . . . . . . . . Shots Fired . | . . . . . . . . . Gun . | . . . . . . . . . Cannon . | . . . . . . . . . Launcher . | . . . . . . . . . Special . | . . . . . . . . . Kinetic . | . . . . . . . . . Thermal . | . . . . . . . . . Explosive . | . . . . . . . . . Electromagnetic . | . . . . . . . . . Robot Hit Streak . | . . . . . . . . . Robot Miss Streak . | . . . . . . . . . Penetration Max . | . . . . . . . . . Secondary Targets . | . . . . . . . . . Shots Hit Robots . | . . . . . . . . . Core Hits 2 | . . . . . 2 . . . Critical Kills . | . . . . . . . . . Critical Parts Destroyed . | . . . . . . . . . Critical Strikes . | . . . . . . . . . Melee Attacks . | . . . . . . . . . Impact . | . . . . . . . . . Slashing . | . . . . . . . . . Piercing . | . . . . . . . . . Sneak Attacks . | . . . . . . . . . Combat Hostiles . | . . . . . . . . . Follow-up Attacks . | . . . . . . . . . Damage Inflicted 11 | . . . . . 11 . . . Guns . | . . . . . . . . . Cannons . | . . . . . . . . . Explosions . | . . . . . . . . . Melee . | . . . . . . . . . Ramming 11 | . . . . . 11 . . . Kinetic . | . . . . . . . . . Thermal . | . . . . . . . . . Explosive . | . . . . . . . . . Electromagnetic . | . . . . . . . . . Impact . | . . . . . . . . . Slashing . | . . . . . . . . . Piercing . | . . . . . . . . . Highest Corruption 1 | . . . . . 1 . . . Average Corruption 1 | . . . . . 1 . . . Corruption Purged . | . . . . . . . . . Corruption Blocked . | . . . . . . . . . Overload Shots . | . . . . . . . . . Overflow Damage . | . . . . . . . . . Projectiles . | . . . . . . . . . Explosions . | . . . . . . . . . Melee . | . . . . . . . . . Knockbacks . | . . . . . . . . . Impact . | . . . . . . . . . Kinetic . | . . . . . . . . . Secondary . | . . . . . . . . . Self-Inflicted Damage 5 | . . . . . 5 . . . Shots . | . . . . . . . . . Rammed 2 | . . . . . 2 . . . Targets Rammed 2 | . . . . . 2 . . . Kicked . | . . . . . . . . . Crushed . | . . . . . . . . . Highest Temperature . | . . . . . . . . . Average Temperature . | . . . . . . . . . Received Heat Transfer 69 | . . 24 . . 45 . . . Siege Activations . | . . . . . . . . . Robots Corrupted . | . . . . . . . . . Combat Hostiles . | . . . . . . . . . Parts Fried . | . . . . . . . . . Impact Corruptions . | . . . . . . . . . Robots Melted . | . . . . . . . . . Combat Hostiles . | . . . . . . . . . Parts Melted . | . . . . . . . . . Heat Transferred . | . . . . . . . . . Parts Sabotaged . | . . . . . . . . . Parts Stolen . | . . . . . . . . . Parts Stripped . | . . . . . . . . . Power Chain Reactions . | . . . . . . . . . Alert | -11 -10 -10 -10 -9 -8 -7 -7 -7 ------- Run | Yrd Mat Min Exi Min Mat Fac DSF Gar Peak Influence 275 | . . . . . 275 144 118 103 Initial 124 | . . . . . . 124 103 88 Average 56 | . . . . . 107 136 104 93 Maximum Alert Level 1 | . . . . . 1 . . . Low Security (%) 97 | 100 100 100 . 100 77 100 100 100 Level 1 2 | . . . . . 22 . . . Level 2 . | . . . . . . . . . Level 3 . | . . . . . . . . . Level 4 . | . . . . . . . . . Level 5 . | . . . . . . . . . High Security . | . . . . . . . . . Max Security . | . . . . . . . . . Squads Dispatched 2 | . . . . . 2 . . . Investigation . | . . . . . . . . . Extermination . | . . . . . . . . . Reinforcement 2 | . . . . . 2 . . . Assault . | . . . . . . . . . Garrison . | . . . . . . . . . Intercept . | . . . . . . . . . Searches Triggered . | . . . . . . . . . Construction Impeded . | . . . . . . . . . Haulers Reinforced . | . . . . . . . . . Active Scanning Responses . | . . . . . . . . . Cargo Convoy Interrupts . | . . . . . . . . . Stealth | -11 -10 -10 -10 -9 -8 -7 -7 -7 --------- Run | Yrd Mat Min Exi Min Mat Fac DSF Gar Distress Signals 1 | . . . . . 1 . . . Communications Jammed . | . . . . . . . . . Distress Signals . | . . . . . . . . . Times Spotted 37 | . . 2 . . 24 . 2 9 Peak Tracking Total 13 | . . 2 . . 13 . 1 10 Tactical Retreats 6 | . . . . . 5 . 1 . Traps | -11 -10 -10 -10 -9 -8 -7 -7 -7 ------- Run | Yrd Mat Min Exi Min Mat Fac DSF Gar Traps Triggered 7 | . . . . . 1 . 3 3 Indirectly . | . . . . . . . . . Trap Hack Attempts . | . . . . . . . . . Triggered . | . . . . . . . . . Disarmed . | . . . . . . . . . Reprogrammed . | . . . . . . . . . Reused . | . . . . . . . . . Traps Extracted . | . . . . . . . . . Installed . | . . . . . . . . . Triggered . | . . . . . . . . . Machines | -11 -10 -10 -10 -9 -8 -7 -7 -7 ---------- Run | Yrd Mat Min Exi Min Mat Fac DSF Gar Machines Disabled . | . . . . . . . . . Max in Single Turn . | . . . . . . . . . Machines Repaired . | . . . . . . . . . Machines Dismantled . | . . . . . . . . . Machines Sabotaged . | . . . . . . . . . Overloaded Fab Kills . | . . . . . . . . . Hacking | -11 -10 -10 -10 -9 -8 -7 -7 -7 --------- Run | Yrd Mat Min Exi Min Mat Fac DSF Gar Machines Accessed 5 | . . . . . 2 3 . . Terminals 4 | . . . . . 2 2 . . Fabricators . | . . . . . . . . . Repair Stations 1 | . . . . . . 1 . . Recycling Units . | . . . . . . . . . Scanalyzers . | . . . . . . . . . Garrison Access . | . . . . . . . . . Total Hacks 15 | . . . . . 8 7 . . Successful 4 | . . . . . 1 3 . . Failed 11 | . . . . . 7 4 . . Catastrophic 3 | . . . . . 1 2 . . Database Lockouts . | . . . . . . . . . Manual 9 | . . . . . 3 6 . . Terminals 13 | . . . . . 8 5 . . Fabricators . | . . . . . . . . . Repair Stations 2 | . . . . . . 2 . . Recycling Units . | . . . . . . . . . Scanalyzers . | . . . . . . . . . Garrison Access . | . . . . . . . . . Terminal Hacks 2 | . . . . . 1 1 . . Open DSF 1 | . . . . . . 1 . . Zone Layout 1 | . . . . . 1 . . . Fabricator Hacks . | . . . . . . . . . Repair Station Hacks . | . . . . . . . . . Recycling Unit Hacks . | . . . . . . . . . Scanalyzer . | . . . . . . . . . Garrison Access Hacks . | . . . . . . . . . Unauthorized Hacks 2 | . . . . . . 2 . . Terminals 2 | . . . . . . 2 . . Botnet 1 | . . . . . . 1 . . Skim 1 | . . . . . . 1 . . Fabricators . | . . . . . . . . . Repair Stations . | . . . . . . . . . Recycling Units . | . . . . . . . . . Scanalyzers . | . . . . . . . . . Garrison Access . | . . . . . . . . . Data Cores Recovered . | . . . . . . . . . Used . | . . . . . . . . . Hacking Detections 4 | . . . . . 2 2 . . Full Trace Events . | . . . . . . . . . Feedback Events . | . . . . . . . . . Feedback Blocked . | . . . . . . . . . Robot Schematics Acquired . | . . . . . . . . . Robots Built . | . . . . . . . . . Authchips . | . . . . . . . . . Time . | . . . . . . . . . Total Robot Build Rating . | . . . . . . . . . Part Schematics Acquired . | . . . . . . . . . Parts Built . | . . . . . . . . . Authchips . | . . . . . . . . . Time . | . . . . . . . . . Total Part Build Rating . | . . . . . . . . . Parts Repaired . | . . . . . . . . . Time . | . . . . . . . . . Parts Recycled . | . . . . . . . . . Recycled Matter . | . . . . . . . . . Retrieved Matter . | . . . . . . . . . Retrieved Components . | . . . . . . . . . Parts Scanalyzed . | . . . . . . . . . Part Schematics Acquired . | . . . . . . . . . Parts Damaged . | . . . . . . . . . Bothacking | -11 -10 -10 -10 -9 -8 -7 -7 -7 ------------ Run | Yrd Mat Min Exi Min Mat Fac DSF Gar Used RIF Installer 1 | . . . . . . . . 1 Robots Hacked . | . . . . . . . . . Non-combat . | . . . . . . . . . Combat . | . . . . . . . . . Robot Hacks Applied . | . . . . . . . . . Relay Couplers Released . | . . . . . . . . . Fabnet Peak Effective % . | . . . . . . . . . Robots Rewired . | . . . . . . . . . Allies Hacked . | . . . . . . . . . Hacks Repelled . | . . . . . . . . . Allies | -11 -10 -10 -10 -9 -8 -7 -7 -7 -------- Run | Yrd Mat Min Exi Min Mat Fac DSF Gar Total Allies 3 | . . . . 3 . . . . Largest Group 3 | . . . . 3 . . . . Highest-Rated Group 40 | . . . . 40 . . . . Highest-Rated Ally 16 | . . . . 16 . . . . Total Orders . | . . . . . . . . . Ally Attacks . | . . . . . . . . . Total Damage . | . . . . . . . . . Kills . | . . . . . . . . . Allies Corrupted . | . . . . . . . . . Allies Melted . | . . . . . . . . . Intel | -11 -10 -10 -10 -9 -8 -7 -7 -7 ------- Run | Yrd Mat Min Exi Min Mat Fac DSF Gar Robot Analysis Total . | . . . . . . . . . Derelict Logs Recovered 2 | . . 2 . . . . . . Drone Launches . | . . . . . . . . . Drone Recoveries . | . . . . . . . . . Exploration | -11 -10 -10 -10 -9 -8 -7 -7 -7 ------------- Run | Yrd Mat Min Exi Min Mat Fac DSF Gar Turns Passed 1244 | 12 24 526 79 56 153 269 54 71 Spaces Moved 2128 | 24 47 1029 158 112 296 281 82 99 Core 2128 | 24 47 1029 158 112 296 281 82 99 Treads . | . . . . . . . . . Legs . | . . . . . . . . . Wheels . | . . . . . . . . . Hover . | . . . . . . . . . Flight . | . . . . . . . . . Fastest Speed 50 | 50 50 50 50 50 50 50 50 50 Average Speed 50 | 50 50 50 50 50 50 50 50 50 Slowest Speed 50 | 50 50 50 50 50 50 50 50 50 Overloaded Moves . | . . . . . . . . . Propulsion Burnouts . | . . . . . . . . . Robots Hopped . | . . . . . . . . . Cave-ins Triggered . | . . . . . . . . . Exploration Rate (%) 39 | 3 16 99 56 28 34 8 86 24 Regions Visited 8 Branch Regions 3 Pre-discovered Areas 2 | . . 2 . . . . . . Known Exits Taken 1 | . . . . . . 1 . . Unknown Exits Taken 6 | 1 1 1 1 1 1 . . . Scrap Searched 2 | . . 2 . . . . . . Spaces Dug . | . . . . . . . . . Terrain Destroyed . | . . . . . . . . . Melee . | . . . . . . . . . Projectile . | . . . . . . . . . AOE . | . . . . . . . . . Terrain Rammed . | . . . . . . . . . Walls Destroyed . | . . . . . . . . . Machines Disabled . | . . . . . . . . . Actions | -11 -10 -10 -10 -9 -8 -7 -7 -7 --------- Run | Yrd Mat Min Exi Min Mat Fac DSF Gar Total 2298 | 23 46 1039 157 111 300 408 94 120 Wait 142 | . . 11 . . 3 128 . . Move 2120 | 23 46 1028 157 111 295 280 81 99 Hop . | . . . . . . . . . Pick Up . | . . . . . . . . . Fast Attach . | . . . . . . . . . Attach . | . . . . . . . . . Detach . | . . . . . . . . . Swap . | . . . . . . . . . Drop . | . . . . . . . . . Fire . | . . . . . . . . . Melee . | . . . . . . . . . Ram 2 | . . . . . 2 . . . Kick . | . . . . . . . . . Crush . | . . . . . . . . . Escape Stasis 34 | . . . . . . . 13 21 Rewire . | . . . . . . . . . Trap . | . . . . . . . . . Miscellaneous . | . . . . . . . . . Route ------- -11/Scrapyard -10/Materials -10/Mines (discovered 3 exits: [*Mat x2] / [*Exi]) -10/Exiles -9/Mines -8/Materials -7/Factory -7/DSF -7/Garrison History --------- Turn | Location | Event 4 | -11/Scrapyard | Discovered new exit (range 15) 13 | -11/Scrapyard | Entered Materials 33 | -10/Materials | Discovered new exit (range 7) 37 | -10/Materials | Entered Mines 57 | -10/Mines | Discovered new exit (range 7) 58 | -10/Mines | Learned Materials emergency access door positions 131 | -10/Mines | Learned location of Storage (-7) 297 | -10/Mines | Discovered new exit (range 6) 305 | -10/Mines | Build established: Mutant 561 | -10/Mines | Deemed a non-threat by the Exiles lab entrance 561 | -10/Mines | Discovered new exit (range 5) 563 | -10/Mines | Entered Exiles 576 | -10/Exiles | Met 8R-AWN 583 | -10/Exiles | Met EX-HEX 599 | -10/Exiles | Met EX-BIN 605 | -10/Exiles | Aligned with FarCom system 606 | -10/Exiles | Given EX-Vault access code 620 | -10/Exiles | Met EX-DEC 637 | -10/Exiles | Discovered new exit (range 14) 642 | -10/Exiles | Entered Mines 659 | -9/Mines | Assisted by bots powering up and referring to "LRC-V3" 694 | -9/Mines | Discovered new exit (range 9) 698 | -9/Mines | Entered Materials 698 | -8/Materials | Evolved 4 slots: Weapon x4 833 | -8/Materials | Core integrity fell below 50% 845 | -8/Materials | Discovered new exit (range 14) 851 | -8/Materials | Entered Factory 851 | -7/Factory | Evolved 2 slots: Weapon x2 1120 | -7/Factory | Identified exit to DSF 1120 | -7/Factory | Entered DSF 1141 | -7/DSF | Additional patrols routed to DSF 1153 | -7/DSF | Discovered new exit (range 15) 1174 | -7/DSF | Entered Garrison 1187 | -7/Garrison | Installed Relay Interface Framework 1218 | -7/Garrison | Triggered checkpoint 1223 | -7/Garrison | Core integrity fell below 50% 1238 | -7/Garrison | Core integrity fell below 20% 1244 | -7/Garrison | Triggered checkpoint 1245 | -7/Garrison | Destroyed by S-27 Virus with Autogun Last Messages --------------- 01232_ Field strength at 94. 01233_ Field strength at 88. 01234_ Field strength at 78. 01235_ Field strength at 68. 01236_ Field strength at 50. 01237_ Field strength at 40. 01238_ Field strength at 30. 01239_ Field strength at 21. 01240_ Field strength at 11. 01240_ S-27 Virus destroyed. 01241_ Field strength at 1. 01241_ Stasis field depleted. 01241_ S-27 Virus destroyed. 01242_ Triggered Stasis Trap. 01242_ A bubble of rippling energy engulfs the area. 01242_ Field strength at 94. 01242_ Field strength at 84. 01243_ Field strength at 70. 01244_ Field strength at 51. Map ----- +----------------------------------------------------+ | ??????????????????????????????# ##""""## #???? | | ??????????????????????????????# #???? | | ??????????????????????????????# #???? | | ??????????????????????????????# #???? | | ??????????????????????????????# ## ## #???? | | ????????????????????????????### ^^## ## "#???? | | ????????????????????????????# "%"???? | | ????????????????????????????# ""???? | | ????????????????????????????# "???? | | ????????????????????????????# "???? | | ????????????????????????????### ## ## #???? | | ??????????????????????????????# ## ## #???? | | ??????????????????????????????+ ? | | ??????????????????????????????+ ? | | ??????????????????????????????# ? | | ??????????????????????????????# ##""""########?? | | ??????????????????????????????# g #?g?g??????????? | | ????????????????????##????????# #??????????????? | | ????????????????????? ????????# g#??????????????? | | ?????????????????????# ???????# #??????????????? | | ?????????????????????# ???????# #??????????????? | | ?????????????????????# ??????# #??????????????? | | ???????????###########/s####### s#??????????????? | | ?????????? ss^ *%%s #??????????????? | | ?????????? ^ =s #??????????????? | | ?????????? @ #??????????????? | | ??????????????######## ######### #??????????????? | | ?????????????????????# ?????????? #??????????????? | | ?????????????????????#???g??????? #??????????????? | | ?????????????????????????gg?????? #??????????????? | | ????????????????????????????????? #??????????????? | | ????????????????????????????????? #??????????????? | | ?????????????????????????????????? ??????????????? | | ?????????????????????????????????????????????????? | | ?????????????????????????????????????????????????? | | ?????????????????????????????????????????????????? | | ?????????????????????????????????????????????????? | | ?????????????????????????????????????????????????? | | ?????????????????????????????????????????????????? | | ?????????????????????????????????????????????????? | | ?????????????????????????????????????????????????? | | ?????????????????????????????????????????????????? | | ?????????????????????????????????????????????????? | | ?????????????????????????????????????????????????? | | ?????????????????????????????????????????????????? | | ?????????????????????????????????????????????????? | | ?????????????????????????????????????????????????? | | ?????????????????????????????????????????????????? | | ?????????????????????????????????????????????????? | | ?????????????????????????????????????????????????? | +----------------------------------------------------+ Best States ------------- Heat Dissipation 34 Energy Generation 5 Energy Capacity 100 Matter Stores 300 Matter Capacity 300 Sight Range 16 Terrain Scan Density 10 Evasion (%) 50 Item Schematics ----------------- None Robot Schematics ------------------ None Fabricated ------------ Nothing Alien Tech Used ----------------- None Achievements -------------- Executioner Challenges ------------ None Game ------ Seed MomentumHypercooledMultitool Manual? 0 Play Time 00:15:18 Cumulative 142.0 hours Start 2024.11.26 @ 02:07:45 End 2024.11.26 @ 12:14:07 Sessions 2 Manual Loads 0 Difficulty Rogue Special Mode None Game No. 120 Rogue 120 Adventurer 0 Explorer 0 Win Type - Total 3 Types 3/0/0/0/0/0/0/0/0 Lore% 53 Gallery% 58 Achievement% 54 Wizard Run 0 Options --------- Layout 1 ASCII 0 Keyboard 1 Movement Arrows Keybinds 0 Fullscreen 0 Font 20/Smallcaps Map View 50x35 Zoom Use 0% Tactical HUD 1 Map Filters NONE Filters NONE Steam 1 RUN: 88f76ff4-2563-4508-9ecc-8a8a8ee79d74